bitfinex/quotes_BTCUSD_20250922
["timestamp","ask_amount","ask_price","bid_price","bid_amount"]
[1758541878523,0.52184287,113050.0,113040.0,0.45736852]
[1758541878853,0.52184287,113050.0,113040.0,0.17692852]
[1758541879333,0.52184287,113050.0,113040.0,0.45748852]
[1758541879334,0.85317633,113050.0,113040.0,0.45748852]
[1758541879970,0.85317633,113050.0,113040.0,0.28056]
[1758541880184,0.87223876,113050.0,113030.0,0.45748996]
[1758541880393,0.50526198,113040.0,113030.0,0.17694417]
[1758541880618,0.50821198,113040.0,113030.0,0.17694417]
[1758541880832,0.18186852,113040.0,113030.0,0.17694417]
[1758541881039,0.17891852,113040.0,113030.0,0.17694417]
[1758541881448,0.18185852,113040.0,113030.0,0.17694417]
[1758541883223,0.18285852,113040.0,113030.0,0.17694417]
[1758541883754,0.17991852,113040.0,113030.0,0.17694417]
[1758541884425,0.00299,113040.0,113030.0,0.17905417]
[1758541884629,0.001,113040.0,113030.0,0.29125384]
[1758541886040,0.001,113040.0,113030.0,0.29125384]
[1758541889623,0.001,113040.0,113030.0,0.57165384]
[1758541889828,0.001,113040.0,113030.0,0.57157384]
[1758541893796,0.001,113040.0,113030.0,0.29125384]
[1758541894075,0.00298,113040.0,113030.0,0.57137384]
[1758541894717,0.001,113040.0,113030.0,0.57137384]
[1758541895896,0.001,113040.0,113030.0,0.89957882]
[1758541899087,0.001,113040.0,113030.0,0.61945882]
[1758541899226,0.001,113040.0,113030.0,0.89945882]
[1758541899862,0.001,113040.0,113030.0,0.29125384]
[1758541900065,0.001,113040.0,113030.0,0.61945882]
[1758541900311,0.001,113040.0,113030.0,0.89961882]
[1758541900512,0.001,113040.0,113030.0,0.61945882]
[1758541901069,0.001,113040.0,113030.0,0.89961882]
[1758541901474,0.001,113040.0,113030.0,0.57141384]
[1758541901698,0.001,113040.0,113030.0,0.57137384]
[1758541901898,0.001,113040.0,113030.0,0.89957882]
[1758541902170,0.001,113040.0,113030.0,0.61945882]
[1758541902758,0.00316,113040.0,113030.0,0.26432384]
[1758541902953,0.00316,113040.0,113030.0,0.54440384]
[1758541903161,0.00316,113040.0,113030.0,0.28685384]
[1758541903364,0.00316,113040.0,113030.0,0.56693384]
[1758541903757,0.00316,113040.0,113030.0,0.57013384]
[1758541904149,0.001,113040.0,113030.0,0.57013384]
[1758541904548,0.001,113040.0,113030.0,0.54760384]
[1758541904749,0.001,113040.0,113030.0,0.57013384]
[1758541904939,0.00298,113040.0,113030.0,0.57013384]
[1758541905556,0.001,113040.0,113030.0,0.57013384]
[1758541907244,0.001,113040.0,113030.0,0.89833882]
[1758541907588,0.001,113040.0,113030.0,0.92849072]
[1758541908522,0.001,113040.0,113030.0,1.2566957]
[1758541908709,0.001,113040.0,113030.0,1.26849072]
[1758541912167,0.07126631,113070.0,113060.0,0.17689722]
[1758541912369,0.07126631,113070.0,113060.0,0.54240689]
[1758541912570,0.07619631,113070.0,113060.0,0.54232689]
[1758541912928,0.25307788,113070.0,113060.0,0.26216689]
[1758541913128,0.18181157,113070.0,113060.0,0.26216689]
[1758541913331,0.18181157,113070.0,113060.0,0.54252689]
[1758541913530,0.18181157,113070.0,113060.0,0.26216689]
[1758541913757,0.00493,113070.0,113060.0,0.54252689]
[1758541914154,0.18181157,113070.0,113060.0,0.54248689]
[1758541914358,0.17689722,113060.0,113050.0,0.17689872]
[1758541914558,0.5100322,113060.0,113040.0,0.46602753]
[1758541914805,0.5100322,113060.0,113040.0,0.2710172]
[1758541914806,0.50788785,113050.0,113040.0,0.2710172]
[1758541915012,0.51004785,113050.0,113040.0,0.5512972]
[1758541915458,0.18184287,113050.0,113040.0,0.5512972]
[1758541916419,0.18184287,113050.0,113040.0,0.27404461]
[1758541916647,0.18184287,113050.0,113040.0,0.55424461]
[1758541916820,0.18184287,113050.0,113040.0,0.54539819]
[1758541917222,0.18184287,113050.0,113040.0,0.54535819]
[1758541917611,0.34,113060.0,113050.0,0.17691287]
[1758541917864,0.34206,113060.0,113050.0,0.17691287]
[1758541918321,0.8500322,113060.0,113040.0,0.61257641]
[1758541918556,0.33107498,113050.0,113040.0,0.32941641]
[1758541918765,0.33107498,113050.0,113040.0,0.60957641]
[1758541918965,0.33313498,113050.0,113040.0,0.60957641]
[1758541919239,0.00493,113050.0,113040.0,0.60957641]
[1758541919996,0.00493,113050.0,113040.0,0.54235819]
[1758541920412,0.18184287,113050.0,113040.0,0.54235819]
[1758541921434,0.18184287,113050.0,113040.0,0.54535819]
[1758541921636,0.51004785,113050.0,113040.0,0.54535819]
[1758541922052,0.51004785,113050.0,113040.0,0.46008852]
[1758541923594,0.18184287,113050.0,113040.0,0.46008852]
[1758541924777,0.51004785,113050.0,113040.0,0.003]
[1758541924980,0.85004785,113050.0,113040.0,0.003]
[1758541925287,0.86911651,113050.0,113040.0,0.003]
[1758541925644,1.14907651,113050.0,113040.0,0.003]
[1758541929557,1.14916158,113050.0,113040.0,0.003]
[1758541929760,1.13227851,113050.0,113040.0,0.003]
[1758541930404,0.87904287,113050.0,113040.0,0.003]
[1758541930604,1.15888287,113050.0,113040.0,0.003]
[1758541930807,1.13227851,113050.0,113040.0,0.003]
[1758541932281,0.79231851,113050.0,113040.0,0.003]
[1758541932658,0.71026167,113050.0,113040.0,0.003]
[1758541933013,0.43038167,113050.0,113040.0,0.003]
[1758541933214,0.69107301,113050.0,113040.0,0.003]
[1758541933426,0.43038167,113050.0,113040.0,0.003]
[1758541933680,0.69103301,113050.0,113040.0,0.003]
[1758541933884,0.46386846,113050.0,113040.0,0.003]
[1758541934089,0.69099301,113050.0,113040.0,0.00807]
[1758541934435,0.69099301,113050.0,113040.0,0.00499]
[1758541934634,0.69099301,113050.0,113040.0,0.003]
[1758541935900,0.71004359,113050.0,113040.0,0.003]
[1758541936891,0.43036359,113050.0,113040.0,0.003]
[1758541937091,0.69095301,113050.0,113040.0,0.003]
[1758541939123,0.41131301,113050.0,113040.0,0.003]
[1758541939369,0.69079301,113050.0,113040.0,0.003]
[1758541939585,0.70984271,113050.0,113040.0,0.003]
[1758541942025,0.4635695,113050.0,113040.0,0.003]
[1758541942226,0.69075301,113050.0,113040.0,0.003]
[1758541942383,0.70980271,113050.0,113040.0,0.003]
[1758541943229,0.43036271,113050.0,113040.0,0.003]
[1758541943448,0.69067301,113050.0,113040.0,0.003]
[1758541943663,0.70972271,113050.0,113040.0,0.003]
[1758541945347,0.7096957,113050.0,113040.0,0.003]
[1758541947802,0.7094957,113050.0,113040.0,0.003]
[1758541951577,0.4303357,113050.0,113040.0,0.003]
[1758541951806,0.1650798,113050.0,113040.0,0.00813]
[1758541952035,0.27916,113050.0,113040.0,0.47226757]
[1758541952259,0.27916,113050.0,113040.0,0.45457472]
[1758541952489,0.53594692,113060.0,113050.0,0.17691287]
[1758541952761,0.53594692,113060.0,113050.0,0.20535287]
[1758541952762,0.19594692,113060.0,113050.0,0.20535287]
[1758541952991,0.70226342,113060.0,113050.0,0.20535287]
[1758541953207,0.72131312,113060.0,113050.0,0.20535287]
[1758541953647,0.44215312,113060.0,113050.0,0.20535287]
[1758541954056,0.42310342,113060.0,113050.0,0.20535287]
[1758541954274,0.70238342,113060.0,113050.0,0.20535287]
[1758541954491,0.70943312,113060.0,113050.0,0.20535287]
[1758541955367,0.71043312,113060.0,113050.0,0.20535287]
[1758541955591,0.46422692,113060.0,113050.0,0.20535287]
[1758541955810,0.70330342,113060.0,113050.0,0.20535287]
[1758541956032,0.72235312,113060.0,113050.0,0.20535287]
[1758541956432,0.70330342,113060.0,113050.0,0.20535287]
[1758541958946,0.2802,113060.0,113050.0,0.20535287]
[1758541959175,0.001,113060.0,113050.0,0.20535287]
[1758541959349,0.28016,113060.0,113050.0,0.20535287]
[1758541959509,0.28016,113060.0,113050.0,0.27049299]
[1758541960684,0.001,113060.0,113050.0,0.27049299]
[1758541960897,0.28016,113060.0,113050.0,0.27049299]
[1758541961501,0.70326342,113060.0,113050.0,0.27049299]
[1758541962299,0.45705722,113060.0,113050.0,0.27049299]
[1758541962499,0.70326342,113060.0,113050.0,0.27049299]
[1758541962900,0.5263662,113060.0,113050.0,0.27049299]
[1758541963871,0.2472062,113060.0,113050.0,0.27049299]
[1758541964096,0.001,113060.0,113050.0,0.27049299]
[1758541964300,0.28008,113060.0,113050.0,0.27049299]
[1758541964710,0.5262862,113060.0,113050.0,0.27049299]
[1758541965125,0.28008,113060.0,113050.0,0.27049299]
[1758541966587,0.28008,113060.0,113050.0,0.35576266]
[1758541969629,0.70318342,113060.0,113050.0,0.17884979]
[1758541969876,0.70318342,113060.0,113050.0,0.35576266]
[1758541977197,0.42410342,113060.0,113050.0,0.35576266]
[1758541977502,0.70302342,113060.0,113050.0,0.35576266]
[1758541978445,0.70294342,113060.0,113050.0,0.35576266]
[1758541978658,0.001,113060.0,113050.0,0.35576266]
[1758541978836,0.2798,113060.0,113050.0,0.35576266]
[1758541979813,0.45669722,113060.0,113050.0,0.35576266]
[1758541980356,0.2798,113060.0,113050.0,0.35576266]
[1758541981243,0.001,113060.0,113050.0,0.35576266]
[1758541981456,0.001,113060.0,113050.0,0.60196886]
[1758541982507,0.001,113060.0,113050.0,0.88076886]
[1758541982740,0.001,113060.0,113050.0,0.60196886]
[1758541983102,0.001,113060.0,113050.0,0.35576266]
[1758541984067,0.001,113060.0,113050.0,0.60196886]
[1758541984763,0.001,113060.0,113050.0,0.35576266]
[1758541985011,0.001,113060.0,113050.0,0.60196886]
[1758541985782,0.001,113060.0,113050.0,0.35576266]
[1758541986025,0.001,113060.0,113050.0,0.60196886]
[1758541992658,0.001,113060.0,113050.0,0.68385499]
[1758542001277,0.001,113060.0,113050.0,0.35576266]
[1758542001470,0.001,113060.0,113050.0,0.63452266]
[1758542009297,0.001,113060.0,113050.0,0.96261499]
[1758542011223,0.001,113060.0,113050.0,0.63452266]
[1758542011422,0.001,113060.0,113050.0,0.96261499]
[1758542013087,0.001,113060.0,113050.0,0.63452266]
[1758542013285,0.001,113060.0,113050.0,0.35576266]
[1758542013510,0.001,113060.0,113050.0,0.63448266]
[1758542014585,0.001,113060.0,113050.0,0.35576266]
[1758542014800,0.17789722,113060.0,113050.0,0.15241979]
[1758542014983,0.50598955,113060.0,113050.0,0.24205299]
[1758542015404,0.78470955,113060.0,113050.0,0.06514012]
[1758542015607,0.17692629,113050.0,113040.0,0.17692852]
[1758542015805,0.50501862,113050.0,113040.0,0.17692852]
[1758542016433,0.17691287,113050.0,113040.0,0.17692852]
[1758542016642,0.79255441,113060.0,113040.0,0.18209852]
[1758542016887,0.8116412,113060.0,113040.0,0.20519852]
[1758542017071,0.5329212,113060.0,113050.0,0.17691287]
[1758542017308,0.19598401,113060.0,113050.0,0.18208287]
[1758542017521,0.5240801,113070.0,113050.0,0.20518287]
[1758542017638,0.8028001,113070.0,113050.0,0.20518287]
[1758542017847,0.8028001,113070.0,113050.0,0.29045254]
[1758542018051,0.17689722,113060.0,113050.0,0.29045254]
[1758542018414,0.17689722,113060.0,113050.0,0.35558602]
[1758542019225,0.001,113060.0,113050.0,0.35558602]
[1758542020005,0.8028001,113070.0,113060.0,0.17689722]
[1758542020348,0.8028001,113070.0,113060.0,0.18206722]
[1758542020696,0.8028001,113070.0,113060.0,0.18106722]
[1758542020905,0.17689722,113060.0,113050.0,0.35348602]
[1758542021352,0.17689722,113060.0,113050.0,0.35558602]
[1758542021985,0.17689722,113060.0,113040.0,0.18577494]
[1758542021986,0.50498955,113060.0,113040.0,0.18577494]
[1758542022148,0.50498955,113060.0,113040.0,0.27104461]
[1758542022369,0.50498955,113060.0,113040.0,0.29721461]
[1758542023335,0.17691287,113050.0,113040.0,0.29721461]
[1758542023561,0.17691287,113050.0,113040.0,0.29931461]
[1758542024928,0.17691287,113050.0,113040.0,0.30231461]
[1758542025925,0.45563287,113050.0,113040.0,0.26519819]
[1758542026143,0.7837252,113050.0,113040.0,0.003]
[1758542027209,1.29895437,113050.0,113040.0,0.003]
[1758542027428,1.32555996,113050.0,113040.0,0.003]
[1758542028056,0.17694417,113030.0,113020.0,0.00884799]
[1758542028274,0.7837565,113030.0,113020.0,0.09411766]
[1758542028727,0.81036237,113030.0,113020.0,0.27107749]
[1758542029635,0.82561234,113030.0,113020.0,0.27107749]
[1758542029846,0.82861234,113030.0,113020.0,0.27107749]
[1758542030319,0.81336237,113030.0,113020.0,0.27107749]
[1758542030542,0.81336237,113030.0,113020.0,0.27317749]
[1758542030749,0.81336237,113030.0,113020.0,0.27624749]
[1758542031179,0.81336237,113030.0,113020.0,0.29934749]
[1758542032299,0.20655004,113030.0,113020.0,0.29934749]
[1758542032519,0.81336237,113030.0,113020.0,0.29934749]
[1758542032748,0.22183369,113030.0,113020.0,0.29934749]
[1758542032961,0.82868602,113030.0,113020.0,0.29934749]
[1758542033172,0.50059369,113030.0,113020.0,0.29934749]
[1758542033380,0.48531004,113030.0,113020.0,0.29934749]
[1758542033982,0.20655004,113030.0,113020.0,0.29934749]
[1758542034191,0.48531004,113030.0,113020.0,0.29934749]
[1758542036267,0.20655004,113030.0,113020.0,0.29934749]
[1758542036776,0.48531004,113030.0,113020.0,0.29934749]
[1758542037473,0.20655004,113030.0,113020.0,0.29934749]
[1758542037723,0.48531004,113030.0,113020.0,0.29934749]
[1758542038894,0.48531004,113030.0,113020.0,0.08736967]
[1758542039106,0.81340237,113030.0,113020.0,0.08736967]
[1758542039294,0.81340237,113030.0,113020.0,0.08526967]
[1758542039507,0.02960587,113030.0,113020.0,0.2643895]
[1758542039720,0.02960587,113030.0,113020.0,0.2903195]
[1758542040333,0.20655004,113030.0,113020.0,0.2903195]
[1758542040660,0.02960587,113030.0,113020.0,0.2903195]
[1758542041425,0.20655004,113030.0,113020.0,0.2903195]
[1758542042543,0.02960587,113030.0,113020.0,0.2903195]
[1758542043763,0.20655004,113030.0,113020.0,0.2903195]
[1758542049083,0.53464237,113030.0,113020.0,0.08742967]
[1758542050049,0.53464237,113030.0,113020.0,0.2643895]
[1758542050360,0.53464237,113030.0,113020.0,0.08742967]
[1758542050537,0.53464237,113030.0,113020.0,0.2643895]
[1758542050811,0.20655004,113030.0,113020.0,0.2643895]
[1758542050991,0.20655004,113030.0,113020.0,0.2674095]
[1758542051196,0.17695983,113020.0,113010.0,0.24673437]
[1758542051377,0.53464237,113030.0,113010.0,0.35707404]
[1758542051378,0.55369754,113030.0,113010.0,0.35707404]
[1758542051533,0.52709167,113030.0,113010.0,0.35707404]
[1758542051800,0.5080365,113030.0,113010.0,0.35707404]
[1758542051948,0.7867965,113030.0,113010.0,0.35707404]
[1758542052168,0.52409167,113030.0,113020.0,0.17695983]
[1758542052377,0.7837965,113030.0,113020.0,0.17695983]
[1758542052598,0.72102073,113030.0,113020.0,0.17695983]
[1758542052849,0.74762818,113030.0,113020.0,0.17911983]
[1758542053476,0.50136679,113030.0,113020.0,0.17911983]
[1758542053606,0.46886818,113030.0,113020.0,0.18213983]
[1758542053817,0.74762818,113030.0,113020.0,0.18213983]
[1758542054021,0.74762818,113030.0,113020.0,0.18113983]
[1758542054231,0.75383739,113030.0,113020.0,0.18113983]
[1758542054660,0.75383739,113030.0,113020.0,0.17811983]
[1758542054867,0.75585838,113030.0,113020.0,0.17811983]
[1758542056333,0.75585838,113030.0,113020.0,0.18122983]
[1758542057277,0.75585838,113030.0,113020.0,0.00527]
[1758542057678,0.75585838,113030.0,113020.0,0.18222983]
[1758542058205,0.75585838,113030.0,113020.0,0.00527]
[1758542058390,0.17695983,113020.0,113010.0,0.61081404]
[1758542058595,0.19603599,113020.0,113010.0,0.63739404]
[1758542059223,0.22264345,113020.0,113010.0,0.63739404]
[1758542059524,0.04568362,113020.0,113010.0,0.63739404]
[1758542060429,0.02660746,113020.0,113010.0,0.63739404]
[1758542060628,0.20356729,113020.0,113010.0,0.63739404]
[1758542061524,0.44982868,113020.0,113010.0,0.06985442]
[1758542061752,0.44982868,113020.0,113000.0,0.4922207]
[1758542061753,0.46891939,113020.0,113000.0,0.4922207]
[1758542061967,0.75385345,113020.0,113010.0,0.20666548]
[1758542062625,0.17697548,113010.0,113000.0,0.79920176]
[1758542062837,0.72103193,113020.0,113000.0,0.82578176]
[1758542063060,0.75385398,113020.0,113010.0,0.17697548]
[1758542063195,0.48098343,113020.0,113010.0,0.17697548]
[1758542063414,0.48098343,113020.0,113010.0,0.17900548]
[1758542063415,0.75385397,113020.0,113010.0,0.17900548]
[1758542063817,0.75385397,113020.0,113010.0,0.00514]
[1758542064017,0.75385397,113020.0,113010.0,0.18211548]
[1758542064254,0.29196125,113020.0,113010.0,0.18211548]
[1758542064451,0.22265969,113020.0,113010.0,0.20666548]
[1758542064842,0.50137969,113020.0,113010.0,0.20666548]
[1758542065315,0.04569986,113020.0,113010.0,0.20666548]
[1758542065523,0.32441986,113020.0,113010.0,0.20666548]
[1758542065733,0.04569986,113020.0,113010.0,0.45292687]
[1758542065950,0.02660915,113020.0,113010.0,0.45292687]
[1758542066164,0.20356898,113020.0,113010.0,0.20666548]
[1758542066637,0.02660915,113020.0,113010.0,0.20666548]
[1758542066849,0.02660915,113020.0,113010.0,0.45292687]
[1758542067279,0.02660915,113020.0,113010.0,0.53819654]
[1758542069213,0.5203121,113040.0,113030.0,0.17694417]
[1758542069421,0.25496,113040.0,113030.0,0.20620417]
[1758542069831,0.28156613,113040.0,113030.0,0.20620417]
[1758542070186,0.52782752,113040.0,113030.0,0.20620417]
[1758542070575,0.53082752,113040.0,113030.0,0.20620417]
[1758542071715,0.28456613,113040.0,113030.0,0.02926]
[1758542072727,0.30832613,113040.0,113030.0,0.02926]
[1758542072932,0.02960613,113040.0,113030.0,0.2932158]
[1758542073145,0.02960613,113040.0,113030.0,0.36079106]
[1758542075074,0.02960613,113040.0,113030.0,0.63951106]
[1758542075510,0.02960613,113040.0,113030.0,0.11452967]
[1758542075700,0.02960613,113040.0,113030.0,0.39320967]
[1758542077173,0.04389953,113040.0,113030.0,0.39320967]
[1758542080662,0.04389953,113040.0,113030.0,0.36079106]
[1758542080835,0.04389953,113040.0,113030.0,0.63947106]
[1758542082065,0.02960613,113040.0,113030.0,0.63947106]
[1758542083481,0.02960613,113040.0,113030.0,0.70564568]
[1758542083896,0.003,113040.0,113030.0,0.70564568]
[1758542084688,0.003,113040.0,113030.0,0.88258985]
[1758542086315,0.17992852,113040.0,113030.0,0.33335846]
[1758542086527,0.17992852,113040.0,113030.0,0.60706846]
[1758542086732,0.17992852,113040.0,113030.0,0.60908846]
[1758542086943,0.17992852,113040.0,113030.0,0.63628846]
[1758542087150,0.2065301,113040.0,113030.0,0.63628846]
[1758542087359,0.17992852,113040.0,113030.0,0.63628846]
[1758542087581,0.2065301,113040.0,113030.0,0.35764846]
[1758542087795,0.45279149,113040.0,113030.0,0.60904846]
[1758542088008,0.2065301,113040.0,113030.0,0.60904846]
[1758542088430,0.17992852,113040.0,113030.0,0.60904846]
[1758542088549,0.17992852,113040.0,113030.0,0.61199846]
[1758542088761,0.42618991,113040.0,113030.0,0.54582384]
[1758542089172,0.17992852,113040.0,113030.0,0.54582384]
[1758542090140,0.003,113040.0,113030.0,0.57011384]
[1758542090948,0.17992852,113040.0,113030.0,0.57011384]
[1758542092167,0.003,113040.0,113030.0,0.57011384]
[1758542092278,0.17992852,113040.0,113030.0,0.57011384]
[1758542092938,0.003,113040.0,113030.0,0.57011384]
[1758542093357,0.17992852,113040.0,113030.0,0.57011384]
[1758542093651,0.17992852,113040.0,113030.0,0.63523891]
[1758542094431,0.42618991,113040.0,113030.0,0.43400474]
[1758542094634,0.42618991,113040.0,113030.0,0.42903474]
[1758542094873,0.42618991,113040.0,113030.0,0.60597891]
[1758542096086,0.42618991,113040.0,113030.0,0.60799891]
[1758542096293,0.17992852,113040.0,113030.0,0.63523891]
[1758542096500,0.42618991,113040.0,113030.0,0.63523891]
[1758542096857,0.42618991,113040.0,113030.0,0.45829474]
[1758542097064,0.42618991,113040.0,113030.0,0.35659891]
[1758542097245,0.42618991,113040.0,113030.0,0.17965474]
[1758542097447,0.42618991,113040.0,113030.0,0.35659891]
[1758542098224,0.42618991,113040.0,113030.0,0.07009507]
[1758542098428,0.6724513,113040.0,113030.0,0.06512507]
[1758542098638,0.42618991,113040.0,113020.0,0.48176566]
[1758542098841,0.70482991,113040.0,113020.0,0.56703533]
[1758542099457,0.70182991,113040.0,113020.0,0.56703533]
[1758542099659,0.70482991,113040.0,113020.0,0.56703533]
[1758542099859,0.17694417,113030.0,113020.0,0.56703533]
[1758542100063,0.17694417,113030.0,113020.0,0.56899533]
[1758542101076,0.42320556,113030.0,113020.0,0.56899533]
[1758542101278,0.42320556,113030.0,113020.0,0.2671895]
[1758542101490,0.42320556,113030.0,113020.0,0.36390967]
[1758542102139,0.42520556,113030.0,113020.0,0.5428295]
[1758542102338,0.42520556,113030.0,113020.0,0.5458295]
[1758542102554,0.42520556,113030.0,113020.0,0.5690095]
[1758542102760,0.17894417,113030.0,113020.0,0.5690095]
[1758542102987,0.42520556,113030.0,113020.0,0.5690095]
[1758542103389,0.43926543,113030.0,113020.0,0.39204967]
[1758542104990,0.43926543,113030.0,113020.0,0.2903695]
[1758542105169,0.19300404,113030.0,113020.0,0.2903695]
[1758542105398,0.43926543,113030.0,113020.0,0.2903695]
[1758542105992,0.70384556,113030.0,113020.0,0.2903695]
[1758542106420,0.70384556,113030.0,113010.0,0.49061683]
[1758542106618,0.70384556,113030.0,113010.0,0.5758865]
[1758542106832,0.70384556,113030.0,113020.0,0.00496]
[1758542107039,0.70384556,113030.0,113020.0,0.02814]
[1758542107234,0.70184556,113030.0,113020.0,0.02814]
[1758542107372,0.71606029,113030.0,113020.0,0.02814]
[1758542107585,0.43742029,113030.0,113020.0,0.20509983]
[1758542108213,0.71606029,113030.0,113020.0,0.20509983]
[1758542108423,0.71606029,113030.0,113020.0,0.02814]
[1758542108621,0.71806029,113030.0,113020.0,0.02814]
[1758542109029,0.1911589,113030.0,113020.0,0.02814]
[1758542109233,0.71606029,113030.0,113020.0,0.02814]
[1758542109433,0.71806029,113030.0,113020.0,0.02814]
[1758542109758,0.43942029,113030.0,113020.0,0.02814]
[1758542109957,0.71806029,113030.0,113020.0,0.02814]
[1758542111611,0.17695983,113020.0,113010.0,0.288424]
[1758542111858,0.42322122,113020.0,113010.0,0.08826967]
[1758542112068,0.17697548,113010.0,113000.0,0.8724385]
[1758542112275,0.42323687,113010.0,113000.0,0.98284817]
[1758542112477,0.42322122,113020.0,113000.0,0.98284817]
[1758542112699,0.42322122,113020.0,113010.0,0.003]
[1758542112878,0.17695983,113020.0,113010.0,0.18193548]
[1758542113180,0.42322122,113020.0,113010.0,0.20511548]
[1758542113390,0.70186122,113020.0,113010.0,0.20511548]
[1758542114851,0.45559983,113020.0,113010.0,0.20511548]
[1758542115788,0.27864,113020.0,113010.0,0.20511548]
[1758542117234,0.45559983,113020.0,113010.0,0.20511548]
[1758542117453,0.17695983,113020.0,113010.0,0.20511548]
[1758542117663,0.45559983,113020.0,113010.0,0.20511548]
[1758542118321,0.17695983,113020.0,113010.0,0.20511548]
[1758542118606,0.45559983,113020.0,113010.0,0.20511548]
[1758542124771,0.52837432,113030.0,113010.0,0.20511548]
[1758542125000,0.27864,113020.0,113010.0,0.20511548]
[1758542125191,0.45559983,113020.0,113010.0,0.20511548]
[1758542130161,0.27864,113020.0,113010.0,0.20511548]
[1758542130579,0.45559983,113020.0,113010.0,0.20511548]
[1758542133587,0.27864,113020.0,113010.0,0.20511548]
[1758542134011,0.45559983,113020.0,113010.0,0.20511548]
[1758542134985,0.54746238,113030.0,113010.0,0.20511548]
[1758542135204,0.27864,113020.0,113010.0,0.20511548]
[1758542135423,0.01908806,113030.0,113020.0,0.17695983]
[1758542135640,0.48217736,113040.0,113030.0,0.17694417]
[1758542135925,0.27613081,113050.0,113040.0,0.17692852]
[1758542136109,0.55983803,113050.0,113040.0,0.17692852]
[1758542136309,0.84469783,113050.0,113040.0,0.17692852]
[1758542136546,0.83847803,113050.0,113030.0,0.20348417]
[1758542136760,0.17692852,113040.0,113030.0,0.20348417]
[1758542136995,0.17692852,113040.0,113030.0,0.20554417]
[1758542137446,0.0133162,113040.0,113030.0,0.20354417]
[1758542137667,0.19024472,113040.0,113030.0,0.20354417]
[1758542137856,0.83847803,113050.0,113030.0,0.20354417]
[1758542138167,0.51010981,113050.0,113030.0,0.20354417]
[1758542138473,0.17992852,113040.0,113030.0,0.20354417]
[1758542139272,0.45556852,113040.0,113030.0,0.20354417]
[1758542140254,0.46889953,113040.0,113030.0,0.20354417]
[1758542141008,0.46889953,113040.0,113030.0,0.0286]
[1758542141212,0.79726775,113040.0,113030.0,0.17694417]
[1758542141672,0.79826775,113040.0,113020.0,0.29761749]
[1758542142172,0.50531239,113030.0,113020.0,0.08829967]
[1758542142524,0.17695983,113020.0,113010.0,0.46745425]
[1758542142812,0.17695983,113020.0,113010.0,0.27618392]
[1758542143081,0.17695983,113020.0,113010.0,0.29969392]
[1758542143620,0.50532805,113020.0,113010.0,0.27618392]
[1758542143887,0.17695983,113020.0,113010.0,0.27618392]
[1758542144317,0.17695983,113020.0,113010.0,0.29969392]
[1758542149128,0.78391239,113030.0,113010.0,0.29969392]
[1758542149334,0.32836822,113030.0,113020.0,0.17695983]
[1758542149544,0.60696822,113030.0,113020.0,0.17695983]
[1758542150599,0.60796822,113030.0,113020.0,0.17695983]
[1758542151019,0.2786,113030.0,113020.0,0.17901983]
[1758542151224,0.5847979,113040.0,113030.0,0.17594417]
[1758542151428,0.8633979,113040.0,113020.0,0.17695983]
[1758542151640,0.17694417,113030.0,113020.0,0.17695983]
[1758542152510,0.50531239,113030.0,113020.0,0.17695983]
[1758542154040,0.5847979,113040.0,113020.0,0.17695983]
[1758542154195,0.32836822,113030.0,113020.0,0.17901983]
[1758542154397,0.60696822,113030.0,113020.0,0.17901983]
[1758542154942,0.78491239,113030.0,113020.0,0.17901983]
[1758542155354,0.78491239,113030.0,113020.0,0.17695983]
[1758542157141,0.78491239,113030.0,113020.0,0.17900983]
[1758542157389,0.60796822,113030.0,113020.0,0.18194983]
[1758542157605,0.78491239,113030.0,113020.0,0.18194983]
[1758542158938,0.78491239,113030.0,113020.0,0.17695983]
[1758542159146,0.78491239,113030.0,113020.0,0.17900983]
[1758542161974,0.78491239,113030.0,113020.0,0.17695983]
[1758542162914,0.45654417,113030.0,113020.0,0.17695983]
[1758542163135,0.78491239,113030.0,113020.0,0.17695983]
[1758542163353,0.78491239,113030.0,113020.0,0.18194983]
[1758542163354,0.60792822,113030.0,113020.0,0.18194983]
[1758542163968,0.60792822,113030.0,113020.0,0.20547983]
[1758542165237,0.32936822,113030.0,113020.0,0.20547983]
[1758542165456,0.60792822,113030.0,113020.0,0.20547983]
[1758542165883,0.32936822,113030.0,113020.0,0.20547983]
[1758542166086,0.60792822,113030.0,113020.0,0.20547983]
[1758542168227,0.27956,113030.0,113020.0,0.20547983]
[1758542168361,0.60792822,113030.0,113020.0,0.20547983]
[1758542169215,0.27956,113030.0,113020.0,0.20547983]
[1758542176807,0.52579921,113030.0,113020.0,0.20547983]
[1758542178759,0.001,113030.0,113020.0,0.20547983]
[1758542179204,0.001,113030.0,113020.0,0.69795825]
[1758542179745,0.001,113030.0,113020.0,0.97647825]
[1758542180323,0.001,113030.0,113020.0,1.1039883]
[1758542180527,0.001,113030.0,113020.0,0.81337982]
[1758542180733,0.001,113030.0,113020.0,1.11850432]
[1758542181130,0.001,113030.0,113020.0,0.83998432]
[1758542181925,0.001,113030.0,113020.0,1.11850432]
[1758542182133,0.001,113030.0,113020.0,0.87226511]
[1758542183115,0.001,113030.0,113020.0,1.11850432]
[1758542186230,0.001,113030.0,113020.0,1.45850432]
[1758542186431,0.001,113030.0,113020.0,1.45846432]
[1758542186661,0.001,113030.0,113020.0,1.17998432]
[1758542186874,0.001,113030.0,113020.0,1.45846432]
[1758542187310,0.001,113030.0,113020.0,1.17998432]
[1758542187570,0.001,113030.0,113020.0,1.45846432]
[1758542188000,0.001,113030.0,113020.0,0.9659859]
[1758542188002,0.001,113030.0,113020.0,1.45846432]
[1758542188980,1e-08,113030.0,113020.0,1.70470353]
[1758542189637,0.07126631,113070.0,113060.0,0.17689722]
[1758542189813,0.07126631,113070.0,113060.0,0.45102643]
[1758542190570,0.10524,113080.0,113070.0,0.17688157]
[1758542190783,0.35147921,113080.0,113070.0,0.17688157]
[1758542191720,0.54061034,113080.0,113070.0,0.17688157]
[1758542192204,0.54061034,113080.0,113070.0,0.17588157]
[1758542192888,0.36374441,113080.0,113070.0,0.17588157]
[1758542193627,0.01904035,113090.0,113080.0,0.17686593]
[1758542193853,0.27844,113090.0,113080.0,0.17686593]
[1758542194054,0.52467921,113090.0,113080.0,0.17686593]
[1758542194699,0.7015295,113090.0,113080.0,0.17686593]
[1758542195110,0.71396097,113090.0,113080.0,0.17686593]
[1758542195348,0.29087147,113090.0,113080.0,0.17886593]
[1758542195585,0.71396097,113090.0,113080.0,0.18180593]
[1758542195948,0.71396097,113090.0,113080.0,0.17686593]
[1758542197016,0.7015295,113090.0,113080.0,0.17686593]
[1758542200443,0.72053653,113090.0,113080.0,0.17686593]
[1758542201028,0.47429732,113090.0,113080.0,0.17686593]
[1758542201350,0.7015295,113090.0,113080.0,0.17686593]